fUSD/lending_fUSD_20240611
["ID","MTS","AMOUNT","RATE_DAILY","PERIOD"]
[329116733,1718119841621,-1758.00000004,0.00024656,13]
[329116734,1718119841641,-632.399994,0.00024656,13]
[329116735,1718119841656,-773.0700005,0.00024656,13]
[329116736,1718119841669,-948.1800015,0.00024656,13]
[329116737,1718119841682,-30838.07785907,0.00024656,13]
[329116738,1718119841698,-1630.60299899,0.00024656,13]
[329116739,1718119841714,-4580.98368002,0.00024656,13]
[329116740,1718119841729,-618.27662292,0.00024656,13]
[329116741,1718119841751,-651.302952,0.00024656,13]
[329116742,1718119841789,-22566.14939622,0.00024656,13]
[329116743,1718119842406,-66045.58196747,0.00024656,13]
[329116744,1718119842424,-1675.01104316,0.00024656,13]
[329116745,1718119842865,-1005.71,0.0002452,2]
[329116746,1718119842876,-500.0,0.00024656,2]
[329116747,1718119842886,-74752.83729413,0.00024656,13]
[329116749,1718119843395,-1263.0,0.00022934,2]
[329116750,1718119843413,-77.0,0.00024457,2]
[329116812,1718119844859,-814.55264413,0.00024457,2]
[329116813,1718119844874,-24475.19455587,0.00024457,2]
[329116814,1718119844884,-500.0,0.00024556,2]
[329116815,1718119844894,-500.0,0.00024556,2]
[329116816,1718119844905,-17500.47885573,0.00024656,13]
[329116817,1718119844916,-276.59199681,0.00024657,2]
[329116818,1718119844926,-502.97243445,0.00024657,2]
[329116819,1718119844938,-500.0,0.00024657,2]
[329116820,1718119844951,-630.51737386,0.00024657,2]
[329116821,1718119844961,-500.0,0.00024657,2]
[329116822,1718119844977,-500.0,0.00024657,2]
[329116823,1718119844988,-529.21329948,0.00024657,2]
[329116824,1718119844999,-500.0,0.00024657,2]
[329116825,1718119845017,-518.53,0.00024657,2]
[329116826,1718119845031,-683.73,0.00024657,2]
[329116827,1718119845067,-500.0,0.00024657,2]
[329116828,1718119845077,-555.21,0.00024657,2]
[329116829,1718119845093,-500.0,0.00024657,2]
[329116830,1718119845103,-464.19260053,0.00024657,2]
[329116831,1718119845113,-500.0,0.00024657,2]
[329116832,1718119845124,-500.0,0.00024657,2]
[329116833,1718119845135,-500.0,0.00024657,2]
[329116834,1718119845145,-500.0,0.00024657,2]
[329116835,1718119845157,-500.0,0.00024657,2]
[329116836,1718119845169,-516.35573114,0.00024657,2]
[329116837,1718119845186,-540.60932175,0.00024657,2]
[329116838,1718119845200,-500.0,0.00024657,2]
[329116839,1718119845218,-500.0,0.00024657,2]
[329116840,1718119845234,-500.0,0.00024657,2]
[329116841,1718119845248,-500.0,0.00024657,2]
[329116842,1718119845260,-500.0,0.00024657,2]
[329116843,1718119845271,-529.20099045,0.00024657,2]
[329116844,1718119845283,-500.0,0.00024657,2]
[329116845,1718119845310,-500.0,0.00024657,2]
[329116846,1718119845320,-500.0,0.00024657,2]
[329116847,1718119845331,-500.0,0.00024657,2]
[329116848,1718119845342,-500.0,0.00024657,2]
[329116849,1718119845353,-500.0,0.00024657,2]
[329116850,1718119845363,-500.0,0.00024657,2]
[329116851,1718119845373,-500.0,0.00024657,2]
[329116852,1718119845384,-543.63,0.00024657,2]
[329116853,1718119845394,-500.0,0.00024657,2]
[329116854,1718119845404,-500.0,0.00024657,2]
[329116855,1718119845415,-500.0,0.00024657,2]
[329116856,1718119845426,-500.0,0.00024657,2]
[329116857,1718119845446,-500.0,0.00024657,2]
[329116858,1718119845456,-1041.51,0.00024657,2]
[329116859,1718119845466,-500.0,0.00024657,2]
[329116860,1718119845488,-514.33,0.00024657,2]
[329116861,1718119845503,-500.0,0.00024657,2]
[329116862,1718119845515,-500.0,0.00024657,2]
[329116863,1718119845535,-500.0,0.00024657,2]
[329116864,1718119845545,-500.0,0.00024657,2]
[329116865,1718119845555,-575.32,0.00024657,2]
[329116866,1718119845577,-500.0,0.00024657,2]
[329116867,1718119845600,-555.24,0.00024657,2]
[329116868,1718119845612,-250.0,0.00024657,2]
[329116869,1718119845625,-500.0,0.00024657,2]
[329116870,1718119845643,-500.0,0.00024657,2]
[329116871,1718119845662,-668.24,0.00024657,2]
[329116872,1718119845677,-500.0,0.00024657,2]
[329116873,1718119845691,-513.51,0.00024657,2]
[329116874,1718119845724,-500.0,0.00024657,2]
[329116875,1718119845739,-1145.81,0.00024657,2]
[329116876,1718119845754,-500.0,0.00024657,2]
[329116877,1718119845799,-1322.7,0.00024657,2]
[329116878,1718119845811,-500.0,0.00024657,2]
[329116879,1718119845837,-500.0,0.00024657,2]
[329116880,1718119845856,-808.77,0.00024657,2]
[329116881,1718119845889,-500.0,0.00024657,2]
[329116883,1718119845901,-636.69,0.00024657,2]
[329116884,1718119845912,-500.0,0.00024657,2]
[329116885,1718119845930,-500.0,0.00024657,2]
[329116886,1718119845949,-500.0,0.00024657,2]
[329116887,1718119845967,-500.0,0.00024657,2]
[329116888,1718119845978,-500.0,0.00024657,2]
[329116889,1718119845996,-513.64264904,0.00024657,2]
[329116890,1718119846007,-500.0,0.00024657,2]
[329116891,1718119846020,-500.0,0.00024657,2]
[329116892,1718119846032,-500.0,0.00024657,2]
[329116893,1718119846047,-559.33,0.00024657,2]
[329116894,1718119846059,-5000.0,0.00024657,2]
[329116895,1718119846079,-552.18,0.00024657,2]
[329116896,1718119846092,-554.85,0.00024657,2]
[329116897,1718119846103,-623.85,0.00024657,2]
[329116898,1718119846120,-510.49425435,0.00024657,2]
[329116899,1718119846143,-500.0,0.00024657,2]
[329116900,1718119846153,-514.02,0.00024657,2]
[329116901,1718119846164,-500.0,0.00024657,2]
[329116902,1718119846178,-500.0,0.00024657,2]
[329116903,1718119846189,-583.6,0.00024657,2]
[329116904,1718119846205,-500.0,0.00024657,2]
[329116905,1718119846217,-500.0,0.00024657,2]
[329116906,1718119846228,-500.0,0.00024657,2]
[329116907,1718119846243,-432.99187259,0.00024657,2]
[329116908,1718119846264,-67.00812741,0.00024657,2]
[329116909,1718119846279,-500.0,0.00024657,2]
[329116910,1718119846291,-372.41048306,0.00024657,2]
[329116911,1718119846315,-753.8,0.00024657,2]
[329116912,1718119846334,-463.22190618,0.00024657,2]
[329116913,1718119846369,-500.0,0.00024657,2]
[329116914,1718119846397,-500.0,0.00024657,2]
[329116915,1718119846408,-500.0,0.00024657,2]
[329116916,1718119846428,-829.72,0.00024657,2]
[329116917,1718119846439,-500.0,0.00024657,2]
[329116918,1718119846452,-500.0,0.00024657,2]
[329116919,1718119846464,-500.0,0.00024657,2]
[329116920,1718119846475,-500.0,0.00024657,2]
[329116921,1718119846488,-500.0,0.00024657,2]
[329116922,1718119846502,-502.75838647,0.00024657,2]
[329116923,1718119846523,-500.0,0.00024657,2]
[329116924,1718119846545,-654.31,0.00024657,2]
[329116925,1718119846556,-511.09790935,0.00024657,2]
[329116926,1718119846567,-500.0,0.00024657,2]
[329116927,1718119846577,-558.5,0.00024657,2]
[329116928,1718119846588,-500.0,0.00024657,2]
[329116929,1718119846600,-500.0,0.00024657,2]
[329116930,1718119846611,-1139.06,0.00024657,2]
[329116931,1718119846622,-500.0,0.00024657,2]
[329116932,1718119846632,-500.0,0.00024657,2]
[329116933,1718119846643,-500.0,0.00024657,2]
[329116934,1718119846653,-500.0,0.00024657,2]
[329116935,1718119846668,-539.32827816,0.00024657,2]
[329116936,1718119846681,-500.0,0.00024657,2]
[329116937,1718119846693,-500.0,0.00024657,2]
[329116938,1718119846704,-500.0,0.00024657,2]
[329116939,1718119846717,-707.32,0.00024657,2]
[329116940,1718119846729,-500.0,0.00024657,2]
[329116941,1718119846741,-500.0,0.00024657,2]
[329116942,1718119846753,-512.39888493,0.00024657,2]
[329116943,1718119846767,-500.0,0.00024657,2]
[329116944,1718119846780,-500.0,0.00024657,2]
[329116945,1718119846791,-971.8,0.00024657,2]
[329116946,1718119846803,-500.0,0.00024657,2]
[329116947,1718119846816,-604.0,0.00024657,2]
[329116948,1718119846828,-366.54,0.00024657,2]
[329116949,1718119846840,-500.0,0.00024657,2]
[329116950,1718119846853,-500.0,0.00024657,2]
[329116951,1718119846865,-507.08,0.00024657,2]
[329116952,1718119846877,-500.0,0.00024657,2]
[329116953,1718119846889,-896.16,0.00024657,2]
[329116954,1718119846899,-500.0,0.00024657,2]
[329116955,1718119846910,-222.75885007,0.00024657,2]
[329116956,1718119846920,-500.0,0.00024657,2]
[329116957,1718119846932,-500.0,0.00024657,2]
[329116958,1718119846943,-500.0,0.00024657,2]
[329116959,1718119846953,-500.0,0.00024657,2]
[329116960,1718119846964,-500.0,0.00024657,2]
[329116961,1718119846975,-500.0,0.00024657,2]
[329116962,1718119846987,-500.0,0.00024657,2]
[329116963,1718119846998,-500.0,0.00024657,2]
[329116964,1718119847011,-500.0,0.00024657,2]
[329116965,1718119847022,-500.0,0.00024657,2]
[329116966,1718119847033,-500.0,0.00024657,2]
[329116967,1718119847043,-563.63,0.00024657,2]
[329116969,1718119847054,-500.0,0.00024657,2]
[329116970,1718119847064,-500.0,0.00024657,2]
[329116971,1718119847076,-527.00346735,0.00024657,2]
[329116972,1718119847086,-500.0,0.00024657,2]
[329116973,1718119847098,-500.0,0.00024657,2]
[329116974,1718119847108,-500.0,0.00024657,2]
[329116975,1718119847120,-500.0,0.00024657,2]
[329116976,1718119847130,-500.0,0.00024657,2]
[329116977,1718119847141,-1356.05,0.00024657,2]
[329116978,1718119847151,-507.55772202,0.00024657,2]
[329116979,1718119847162,-500.0,0.00024657,2]
[329116980,1718119847173,-500.0,0.00024657,2]
[329116981,1718119847184,-500.0,0.00024657,2]
[329116982,1718119847197,-514.1455354,0.00024657,2]
[329116983,1718119847207,-500.0,0.00024657,2]
[329116984,1718119847219,-524.50001624,0.00024657,2]
[329116985,1718119847232,-500.0,0.00024657,2]
[329116986,1718119847252,-1682.66,0.00024657,2]
[329116987,1718119847263,-500.0,0.00024657,2]
[329116988,1718119847273,-509.55519295,0.00024657,2]
[329116989,1718119847285,-500.0,0.00024657,2]
[329116990,1718119847307,-500.0,0.00024657,2]
[329116991,1718119847320,-681.15,0.00024657,2]
[329116992,1718119847332,-500.0,0.00024657,2]
[329116993,1718119847343,-2324.25,0.00024657,2]
[329116994,1718119847353,-500.0,0.00024657,2]
[329116995,1718119847365,-500.0,0.00024657,2]
[329116996,1718119847376,-502.93533408,0.00024657,2]
[329116997,1718119847386,-500.0,0.00024657,2]
[329116998,1718119847397,-525.4627648,0.00024657,2]
[329116999,1718119847408,-500.0,0.00024657,2]
[329117000,1718119847419,-500.0,0.00024657,2]
[329117001,1718119847698,-500.0,0.00024657,2]
[329117002,1718119847709,-500.0,0.00024657,2]
[329117003,1718119847720,-500.0,0.00024657,2]
[329117004,1718119847731,-611.24,0.00024657,2]
[329117005,1718119847744,-500.0,0.00024657,2]
[329117006,1718119847755,-500.0,0.00024657,2]
[329117007,1718119847767,-500.0,0.00024657,2]
[329117008,1718119847782,-705.68,0.00024657,2]
[329117009,1718119847793,-500.0,0.00024657,2]
[329117010,1718119847805,-1057.77,0.00024657,2]
[329117011,1718119847816,-529.55452236,0.00024657,2]
[329117012,1718119847827,-500.0,0.00024657,2]
[329117013,1718119847838,-500.0,0.00024657,2]
[329117014,1718119847852,-543.9,0.00024657,2]
[329117015,1718119847864,-500.0,0.00024657,2]
[329117016,1718119847876,-1019.56,0.00024657,2]
[329117017,1718119847887,-500.0,0.00024657,2]
[329117018,1718119847898,-776.13,0.00024657,2]
[329117019,1718119847909,-500.0,0.00024657,2]
[329117020,1718119847920,-500.0,0.00024657,2]
[329117021,1718119847931,-255.23765652,0.00024657,2]
[329117022,1718119847953,-658.78234348,0.00024657,2]
[329117023,1718119847964,-89.84996225,0.00024657,2]
[329117024,1718119847977,-610.88003775,0.00024657,2]
[329117025,1718119847988,-35.83216535,0.00024657,2]
[329117026,1718119848001,-464.16783465,0.00024657,2]
[329117027,1718119848012,-500.0,0.00024657,2]
[329117028,1718119848023,-500.0,0.00024657,2]
[329117029,1718119848034,-30.74572621,0.00024657,2]
[329117030,1718119848048,-469.25427379,0.00024657,2]
[329117031,1718119848059,-500.0,0.00024657,2]
[329117032,1718119848069,-523.99,0.00024657,2]
[329117033,1718119848080,-703.75,0.00024657,2]
[329117034,1718119848092,-943.22,0.00024657,2]
[329117035,1718119848103,-648.55,0.00024657,2]
[329117036,1718119848113,-648.0,0.00024657,2]
[329117037,1718119848126,-410.51924036,0.00024657,2]
[329117038,1718119848137,-1047.87,0.00024657,2]
[329117039,1718119848160,-500.0,0.00024657,2]
[329117040,1718119848172,-500.0,0.00024657,2]
[329117041,1718119848185,-500.0,0.00024657,2]
[329117042,1718119848202,-516.00383718,0.00024657,2]
[329117043,1718119848215,-503.86321507,0.00024657,2]
[329117044,1718119848233,-500.0,0.00024657,2]
[329117045,1718119848250,-500.0,0.00024657,2]
[329117046,1718119848263,-520.82738717,0.00024657,2]
[329117047,1718119848275,-1211.05,0.00024657,2]
[329117048,1718119848287,-500.0,0.00024657,2]
[329117049,1718119848309,-500.0,0.00024657,2]
[329117050,1718119848322,-500.0,0.00024657,2]
[329117051,1718119848334,-627.36,0.00024657,2]
[329117052,1718119848349,-500.0,0.00024657,2]
[329117053,1718119848366,-500.0,0.00024657,2]
[329117054,1718119848379,-500.0,0.00024657,2]
[329117055,1718119848390,-500.0,0.00024657,2]
[329117056,1718119848403,-500.0,0.00024657,2]
[329117057,1718119848417,-760.16,0.00024657,2]
[329117058,1718119848429,-500.0,0.00024657,2]
[329117059,1718119848446,-207.95569975,0.00024657,2]
[329117060,1718119848472,-500.0,0.00024657,2]
[329117061,1718119848485,-877.37,0.00024657,2]
[329117062,1718119848497,-1495.85,0.00024657,2]
[329117063,1718119848512,-881.16,0.00024657,2]
[329117064,1718119848532,-500.0,0.00024657,2]
[329117065,1718119848544,-579.04,0.00024657,2]
[329117066,1718119848564,-570.68,0.00024657,2]
[329117067,1718119848596,-500.0,0.00024657,2]
[329117068,1718119848611,-500.0,0.00024657,2]
[329117069,1718119848622,-536.5,0.00024657,2]
[329117070,1718119848633,-500.0,0.00024657,2]
[329117071,1718119848645,-500.0,0.00024657,2]
[329117072,1718119848657,-500.0,0.00024657,2]
[329117073,1718119848670,-451.31814676,0.00024657,2]
[329117074,1718119848682,-2090.27,0.00024657,2]
[329117076,1718119848693,-591.99,0.00024657,2]
[329117077,1718119848704,-500.0,0.00024657,2]
[329117078,1718119848719,-500.0,0.00024657,2]
[329117079,1718119848735,-500.0,0.00024657,2]
[329117080,1718119848750,-500.0,0.00024657,2]
[329117081,1718119848764,-1380.98,0.00024657,2]
[329117082,1718119848787,-751.66,0.00024657,2]
[329117083,1718119848800,-500.0,0.00024657,2]
[329117084,1718119848813,-1529.61,0.00024657,2]
[329117085,1718119848825,-574.03,0.00024657,2]
[329117086,1718119848837,-500.0,0.00024657,2]
[329117087,1718119848850,-623.49,0.00024657,2]
[329117088,1718119848862,-500.0,0.00024657,2]
[329117089,1718119848873,-1719.08106678,0.00024657,2]
[329117090,1718119848891,-834.44893322,0.00024657,2]
[329117091,1718119848902,-500.0,0.00024657,2]
[329117092,1718119848913,-500.0,0.00024657,2]
[329117093,1718119848924,-500.0,0.00024657,2]
[329117094,1718119848935,-500.0,0.00024657,2]
[329117095,1718119848948,-724.37,0.00024657,2]
[329117096,1718119848959,-1394.23452735,0.00024657,2]
[329117097,1718119849180,-1625.37547265,0.00024657,2]
[329117098,1718119849193,-500.0,0.00024657,2]
[329117099,1718119849204,-500.0,0.00024657,2]
[329117100,1718119849214,-500.0,0.00024657,2]
[329117101,1718119849224,-1070.22,0.00024657,2]
[329117102,1718119849235,-500.0,0.00024657,2]
[329117103,1718119849245,-500.0,0.00024657,2]
[329117104,1718119849255,-500.63,0.00024657,2]
[329117105,1718119849266,-2331.47,0.00024657,2]
[329117106,1718119849277,-500.0,0.00024657,2]
[329117107,1718119849291,-500.0,0.00024657,2]
[329117108,1718119849306,-615.7,0.00024657,2]
[329117109,1718119849318,-500.0,0.00024657,2]
[329117110,1718119849330,-2919.54,0.00024657,2]
[329117111,1718119849343,-907.95,0.00024657,2]
[329117112,1718119849355,-500.0,0.00024657,2]
[329117113,1718119849366,-500.0,0.00024657,2]
[329117114,1718119849379,-1084.57,0.00024657,2]
[329117115,1718119849390,-627.65723319,0.00024657,2]
[329117116,1718119849400,-1224.95,0.00024657,2]
[329117117,1718119849412,-709.63,0.00024657,2]
[329117118,1718119849423,-618.03659563,0.00024657,2]
[329117119,1718119849435,-500.0,0.00024657,2]
[329117120,1718119849447,-500.0,0.00024657,2]
[329117121,1718119849459,-500.0,0.00024657,2]
[329117122,1718119849472,-500.0,0.00024657,2]
[329117123,1718119849484,-259.61654385,0.00024657,2]
[329117124,1718119849499,-500.0,0.00024657,2]
[329117125,1718119849513,-500.0,0.00024657,2]
[329117126,1718119849524,-565.71,0.00024657,2]
[329117127,1718119849536,-500.0,0.00024657,2]
[329117128,1718119849547,-1455.18,0.00024657,2]
[329117129,1718119849565,-1637.05,0.00024657,2]
[329117130,1718119849576,-500.0,0.00024657,2]
[329117131,1718119849587,-500.0,0.00024657,2]
[329117132,1718119849598,-1208.56,0.00024657,2]
[329117133,1718119849609,-158.66295816,0.00024657,2]
[329117134,1718119849619,-2247.91,0.00024657,2]
[329117135,1718119849631,-500.0,0.00024657,2]
[329117136,1718119849642,-500.0,0.00024657,2]
[329117137,1718119849652,-151.0,0.00024657,7]
[329117138,1718119849663,-772.94,0.00024657,2]
[329117139,1718119849673,-1564.62,0.00024657,2]
[329117140,1718119849684,-500.0,0.00024657,2]
[329117141,1718119849697,-500.0,0.00024657,2]
[329117142,1718119849707,-500.0,0.00024657,2]
[329117143,1718119849718,-500.0,0.00024657,2]
[329117144,1718119849729,-500.0,0.00024657,2]
[329117145,1718119849739,-741.61,0.00024657,2]
[329117146,1718119849749,-536.49,0.00024657,2]
[329117147,1718119849760,-151.0,0.00024657,7]
[329117148,1718119849771,-612.9,0.00024657,2]
[329117149,1718119849783,-1324.54,0.00024657,2]
[329117150,1718119849799,-933.08,0.00024657,2]
[329117151,1718119849812,-1541.98,0.00024657,2]
[329117152,1718119849823,-500.0,0.00024657,2]
[329117153,1718119849833,-571.5262892,0.00024657,2]
[329117154,1718119849843,-500.0,0.00024657,2]
[329117155,1718119849855,-500.0,0.00024657,2]
[329117156,1718119849865,-500.0,0.00024657,2]
[329117157,1718119849876,-500.0,0.00024657,2]
[329117158,1718119849887,-888.13,0.00024657,2]
[329117159,1718119849898,-516.81,0.00024657,2]
[329117160,1718119849910,-500.0,0.00024657,2]
[329117161,1718119849921,-151.0,0.00024657,7]
[329117162,1718119849931,-500.0,0.00024657,2]
[329117163,1718119849943,-1186.13,0.00024657,2]
[329117164,1718119849954,-1289.9,0.00024657,2]
[329117165,1718119849964,-500.0,0.00024657,2]
[329117166,1718119849974,-500.0,0.00024657,2]
[329117167,1718119849985,-500.0,0.00024657,2]
[329117168,1718119849997,-500.0,0.00024657,2]
[329117169,1718119850007,-500.0,0.00024657,2]
[329117170,1718119850018,-500.0,0.00024657,2]
[329117171,1718119850028,-500.0,0.00024657,2]
[329117172,1718119850038,-603.79213017,0.00024657,2]
[329117173,1718119850049,-500.0,0.00024657,2]
[329117174,1718119850059,-500.0,0.00024657,2]
[329117175,1718119850070,-500.0,0.00024657,2]
[329117176,1718119850080,-637.38,0.00024657,2]
[329117177,1718119850091,-500.0,0.00024657,2]
[329117178,1718119850101,-737.95,0.00024657,2]
[329117179,1718119850112,-1754.73,0.00024657,2]
[329117180,1718119850125,-500.0,0.00024657,2]
[329117181,1718119850137,-1128.82,0.00024657,2]
[329117182,1718119850148,-1477.14,0.00024657,2]
[329117183,1718119850159,-500.0,0.00024657,2]
[329117184,1718119850170,-500.0,0.00024657,2]
[329117185,1718119850180,-500.0,0.00024657,2]
[329117186,1718119850191,-828.24,0.00024657,2]
[329117187,1718119850204,-500.0,0.00024657,2]
[329117188,1718119850215,-500.0,0.00024657,2]
[329117189,1718119850225,-1128.26,0.00024657,2]
[329117190,1718119850235,-1049.12,0.00024657,2]
[329117191,1718119850246,-157.198841,0.00024657,7]
[329117192,1718119850257,-500.0,0.00024657,2]
[329117193,1718119850268,-500.0,0.00024657,2]
[329117194,1718119850279,-500.0,0.00024657,2]
[329117195,1718119850289,-1337.66,0.00024657,2]
[329117196,1718119850317,-152.259226,0.00024657,7]
[329117197,1718119850327,-500.0,0.00024657,2]
[329117198,1718119850338,-849.21,0.00024657,2]
[329117199,1718119850349,-500.0,0.00024657,2]
[329117200,1718119850359,-151.0,0.00024657,7]
[329117201,1718119850368,-500.0,0.00024657,2]
[329117202,1718119850378,-500.0,0.00024657,2]
[329117203,1718119850389,-608.96,0.00024657,2]
[329117204,1718119850399,-500.0,0.00024657,2]
[329117205,1718119850409,-1019.88,0.00024657,2]
[329117206,1718119850422,-500.0,0.00024657,2]
[329117207,1718119850432,-905.84,0.00024657,2]
[329117208,1718119850445,-500.0,0.00024657,2]
[329117209,1718119850456,-598.76,0.00024657,2]
[329117210,1718119850466,-500.0,0.00024657,2]
[329117211,1718119850476,-1291.02,0.00024657,2]
[329117212,1718119850487,-500.0,0.00024657,2]
[329117213,1718119850497,-500.0,0.00024657,2]
[329117214,1718119850507,-757.32,0.00024657,2]
[329117215,1718119850518,-1110.45,0.00024657,2]
[329117216,1718119850530,-500.0,0.00024657,2]
[329117217,1718119850541,-500.0,0.00024657,2]
[329117218,1718119850552,-405.87741879,0.00024657,2]
[329117219,1718119850563,-650.14,0.00024657,2]
[329117220,1718119850574,-500.0,0.00024657,2]
[329117221,1718119850584,-715.63,0.00024657,2]
[329117222,1718119850596,-987.44,0.00024657,2]
[329117223,1718119850606,-2460.55,0.00024657,2]
[329117224,1718119850623,-430.78758433,0.00024657,2]
[329117225,1718119851374,-155.0,0.00019178,2]
[329117226,1718119851384,-500.0,0.00021917,2]
[329117227,1718119851395,-516.49288146,0.00022054,2]
[329117228,1718119851406,-500.0,0.00024556,2]
[329117229,1718119851417,-500.0,0.00024656,2]
[329117230,1718119851428,-69.21241567,0.00024657,2]
[329117231,1718119851439,-522.18,0.00024657,2]
[329117232,1718119851452,-500.0,0.00024657,2]
[329117233,1718119851462,-592.35,0.00024657,2]
[329117234,1718119851472,-509.53,0.00024657,2]
[329117235,1718119851482,-151.0,0.00024657,7]
[329117236,1718119851492,-500.0,0.00024657,2]
[329117237,1718119851503,-1338.47,0.00024657,2]
[329117238,1718119851513,-1014.27,0.00024657,2]
[329117239,1718119851523,-644.76,0.00024657,2]
[329117240,1718119851534,-521.79211897,0.00024657,2]
[329117241,1718119851545,-966.51,0.00024657,2]
[329117242,1718119851555,-1589.42,0.00024657,2]
[329117243,1718119851565,-500.0,0.00024657,2]
[329117244,1718119851576,-500.0,0.00024657,2]
[329117245,1718119851587,-500.0,0.00024657,2]
[329117246,1718119851597,-500.0,0.00024657,2]
[329117247,1718119851608,-500.0,0.00024657,2]
[329117248,1718119851618,-1104.19,0.00024657,2]
[329117249,1718119851629,-500.0,0.00024657,2]
[329117250,1718119851640,-500.0,0.00024657,2]
[329117251,1718119851651,-1115.21,0.00024657,2]
[329117252,1718119851661,-500.0,0.00024657,2]
[329117253,1718119851672,-1188.92,0.00024657,2]
[329117254,1718119851683,-571.28,0.00024657,2]
[329117255,1718119851696,-500.0,0.00024657,2]
[329117256,1718119851706,-500.0,0.00024657,2]
[329117257,1718119851719,-540.3538234,0.00024657,2]
[329117258,1718119851730,-151.0,0.00024657,7]
[329117259,1718119851741,-956.04,0.00024657,2]
[329117260,1718119851752,-500.0,0.00024657,2]
[329117261,1718119851764,-584.57,0.00024657,2]
[329117262,1718119851778,-151.0,0.00024657,7]
[329117263,1718119851790,-500.0,0.00024657,2]
[329117264,1718119851801,-500.0,0.00024657,2]
[329117265,1718119851812,-500.0,0.00024657,2]
[329117266,1718119851824,-500.0,0.00024657,2]
[329117267,1718119851835,-500.0,0.00024657,2]
[329117268,1718119851850,-500.0,0.00024657,2]
[329117269,1718119851861,-500.0,0.00024657,2]
[329117270,1718119851873,-500.0,0.00024657,2]
[329117271,1718119851883,-676.23,0.00024657,2]
[329117272,1718119851894,-500.0,0.00024657,2]
[329117273,1718119851905,-506.15,0.00024657,2]
[329117274,1718119851915,-1011.09,0.00024657,2]
[329117275,1718119851926,-1428.14,0.00024657,2]
[329117276,1718119851937,-696.77,0.00024657,2]
[329117277,1718119851950,-926.57,0.00024657,2]
[329117278,1718119851961,-753.5,0.00024657,2]
[329117279,1718119851973,-500.0,0.00024657,2]
[329117280,1718119851983,-639.55,0.00024657,2]
[329117281,1718119851994,-1951.3,0.00024657,2]
[329117282,1718119852005,-804.48,0.00024657,2]
[329117283,1718119852016,-500.0,0.00024657,2]
[329117284,1718119852027,-640.14291909,0.00024657,2]
[329117285,1718119852039,-500.0,0.00024657,2]
[329117286,1718119852049,-500.0,0.00024657,2]
[329117287,1718119852060,-309.93720992,0.00024657,2]
[329117288,1718119852070,-500.0,0.00024657,2]
[329117289,1718119852081,-500.0,0.00024657,2]
[329117290,1718119852092,-764.98,0.00024657,2]
[329117291,1718119852102,-1299.57,0.00024657,2]
[329117292,1718119852113,-503.44232283,0.00024657,2]
[329117293,1718119852123,-552.93,0.00024657,2]
[329117294,1718119852134,-921.55,0.00024657,2]
[329117295,1718119852145,-2439.83,0.00024657,2]
[329117296,1718119852155,-500.0,0.00024657,2]
[329117297,1718119852166,-500.0,0.00024657,2]